[Event "*** Titled Tuesday Blitz"]
[Site "Chess.com"]
[Date "2020.12.29"]
[Round "3"]
[White "ExtremeLearner"]
[Black "Mazetovic"]
[Result "1/2-1/2"]
[WhiteElo "2363"]
[BlackElo "2812"]
[TimeControl "180+1"]
[EndTime "10:29:55 PST"]
[Termination "Game drawn by repetition"]

1. d4 {[%clk 0:03:00.9]} 1... Nf6 {[%clk 0:03:00.9]} 2. Nf3 {[%clk 0:02:54.5]}
2... g6 {[%clk 0:02:57.6]} 3. g3 {[%clk 0:02:50.9]} 3... Bg7 {[%clk 0:02:55]} 4.
Bg2 {[%clk 0:02:51]} 4... O-O {[%clk 0:02:55.7]} 5. O-O {[%clk 0:02:50.1]} 5...
d6 {[%clk 0:02:54.4]} 6. b3 {[%clk 0:02:50.2]} 6... a5 {[%clk 0:02:53.7]} 7. a4
{[%clk 0:02:39.9]} 7... Na6 {[%clk 0:02:51.5]} 8. Bb2 {[%clk 0:02:38.8]} 8... d5
{[%clk 0:02:49.5]} 9. Nbd2 {[%clk 0:02:32.4]} 9... c6 {[%clk 0:02:50.4]} 10. Re1
{[%clk 0:02:25.4]} 10... Nb4 {[%clk 0:02:51.3]} 11. c3 {[%clk 0:02:22.4]} 11...
Bf5 {[%clk 0:02:52.2]} 12. cxb4 {[%clk 0:02:17.1]} 12... axb4 {[%clk 0:02:31.7]}
13. Nh4 {[%clk 0:02:09]} 13... Bg4 {[%clk 0:02:25.1]} 14. h3 {[%clk 0:02:08.2]}
14... Be6 {[%clk 0:02:22.4]} 15. Nhf3 {[%clk 0:02:05.6]} 15... Qc8 {[%clk
0:02:19.9]} 16. Kh2 {[%clk 0:02:04.6]} 16... h6 {[%clk 0:02:09.9]} 17. Rc1
{[%clk 0:02:02.5]} 17... Ne4 {[%clk 0:02:03.7]} 18. Nxe4 {[%clk 0:01:58.8]}
18... dxe4 {[%clk 0:02:03.7]} 19. Ne5 {[%clk 0:01:59.4]} 19... Bd5 {[%clk
0:02:01.4]} 20. e3 {[%clk 0:01:51.4]} 20... Qe6 {[%clk 0:02:01]} 21. Nc4 {[%clk
0:01:40.2]} 21... b5 {[%clk 0:01:49.1]} 22. axb5 {[%clk 0:01:39.3]} 22... cxb5
{[%clk 0:01:49.5]} 23. Nd2 {[%clk 0:01:36.1]} 23... Ra2 {[%clk 0:01:50.1]} 24.
Rb1 {[%clk 0:01:33.5]} 24... Rc8 {[%clk 0:01:48.1]} 25. Bf1 {[%clk 0:01:25.8]}
25... Qd7 {[%clk 0:01:47.1]} 26. Bg2 {[%clk 0:01:17.4]} 26... f5 {[%clk
0:01:46.3]} 27. g4 {[%clk 0:00:57.1]} 27... e6 {[%clk 0:01:44.7]} 28. Bc1 {[%clk
0:00:43.7]} 28... Rcc2 {[%clk 0:01:42.2]} 29. Ra1 {[%clk 0:00:43.9]} 29... Bf8
{[%clk 0:01:27.1]} 30. Rxa2 {[%clk 0:00:42.6]} 30... Rxa2 {[%clk 0:01:26.9]} 31.
Re2 {[%clk 0:00:38.7]} 31... Qc7+ {[%clk 0:01:21.1]} 32. Kh1 {[%clk 0:00:36.5]}
32... Ra1 {[%clk 0:01:21]} 33. Re1 {[%clk 0:00:35.3]} 33... Bd6 {[%clk
0:01:17.4]} 34. Nf1 {[%clk 0:00:31]} 34... Qc3 {[%clk 0:01:10]} 35. Bd2 {[%clk
0:00:20.2]} 35... Rxd1 {[%clk 0:01:03.3]} 36. Bxc3 {[%clk 0:00:20.3]} 36... bxc3
{[%clk 0:01:02]} 37. Rxd1 {[%clk 0:00:19.7]} 37... Bxb3 {[%clk 0:01:01.7]} 38.
Rc1 {[%clk 0:00:19.1]} 38... c2 {[%clk 0:00:55.8]} 39. Nd2 {[%clk 0:00:17.6]}
39... Ba4 {[%clk 0:00:56.1]} 40. Bf1 {[%clk 0:00:16]} 40... Ba3 {[%clk
0:00:55.5]} 41. Rxc2 {[%clk 0:00:15.2]} 41... Bxc2 {[%clk 0:00:55.5]} 42. Bxb5
{[%clk 0:00:15.9]} 42... Bd1 {[%clk 0:00:42.2]} 43. Be8 {[%clk 0:00:12.9]} 43...
Kg7 {[%clk 0:00:41.3]} 44. Kg1 {[%clk 0:00:05.4]} 44... Kf6 {[%clk 0:00:41]} 45.
gxf5 {[%clk 0:00:05.3]} 45... exf5 {[%clk 0:00:40.6]} 46. Nc4 {[%clk 0:00:06]}
46... Be7 {[%clk 0:00:36.8]} 47. Ne5 {[%clk 0:00:06.1]} 47... g5 {[%clk
0:00:36.2]} 48. Bd7 {[%clk 0:00:06.2]} 48... Bd6 {[%clk 0:00:34.5]} 49. Nc6
{[%clk 0:00:06.2]} 49... f4 {[%clk 0:00:28.1]} 50. Na5 {[%clk 0:00:06.4]} 50...
Be2 {[%clk 0:00:25.8]} 51. Bc6 {[%clk 0:00:05.4]} 51... Bd3 {[%clk 0:00:25]} 52.
Nb3 {[%clk 0:00:04.7]} 52... fxe3 {[%clk 0:00:13.4]} 53. fxe3 {[%clk 0:00:05.6]}
53... h5 {[%clk 0:00:13.2]} 54. Nd2 {[%clk 0:00:06]} 54... Kf5 {[%clk 0:00:13]}
55. Bd7+ {[%clk 0:00:06.2]} 55... Kf6 {[%clk 0:00:12.6]} 56. Bc6 {[%clk
0:00:06.7]} 56... Bb4 {[%clk 0:00:11.4]} 57. Nxe4+ {[%clk 0:00:05.6]} 57... Kg6
{[%clk 0:00:11.5]} 58. Nf2 {[%clk 0:00:05.5]} 58... Bc4 {[%clk 0:00:10.6]} 59.
Be4+ {[%clk 0:00:05.8]} 59... Kf6 {[%clk 0:00:10.4]} 60. Bd3 {[%clk 0:00:05.9]}
60... Be6 {[%clk 0:00:10.5]} 61. Ne4+ {[%clk 0:00:05.7]} 61... Kg6 {[%clk
0:00:08.6]} 62. Nc5+ {[%clk 0:00:05.5]} 62... Kf6 {[%clk 0:00:08]} 63. Ne4+
{[%clk 0:00:04.8]} 63... Kg6 {[%clk 0:00:07.8]} 64. Ng3+ {[%clk 0:00:05.1]}
64... Kh6 {[%clk 0:00:07.3]} 65. Nf5+ {[%clk 0:00:05.3]} 65... Kg6 {[%clk
0:00:06.9]} 66. Nd6+ {[%clk 0:00:05.5]} 66... Kf6 {[%clk 0:00:06.7]} 67. Ne4+
{[%clk 0:00:05.8]} 1/2-1/2

[Event "*** Titled Tuesday Blitz"]
[Site "Chess.com"]
[Date "2020.12.29"]
[Round "3"]
[White "rachidhuilda"]
[Black "Nuvas"]
[Result "0-1"]
[WhiteElo "2229"]
[BlackElo "2501"]
[TimeControl "180+1"]
[EndTime "10:29:57 PST"]
[Termination "Nuvas won on time"]

1. d4 {[%clk 0:03:00.9]} 1... Nf6 {[%clk 0:02:59.8]} 2. Bg5 {[%clk 0:03:00.9]}
2... Ne4 {[%clk 0:02:57.4]} 3. Bf4 {[%clk 0:03:01]} 3... d5 {[%clk 0:02:57.5]}
4. e3 {[%clk 0:03:01]} 4... c5 {[%clk 0:02:56.3]} 5. Bd3 {[%clk 0:03:01.5]} 5...
cxd4 {[%clk 0:02:47.5]} 6. exd4 {[%clk 0:03:01.3]} 6... Nc6 {[%clk 0:02:40.7]}
7. c3 {[%clk 0:03:00.5]} 7... Bf5 {[%clk 0:02:16.3]} 8. Nf3 {[%clk 0:02:59.6]}
8... e6 {[%clk 0:02:15]} 9. O-O {[%clk 0:02:58.2]} 9... Bd6 {[%clk 0:02:13.2]}
10. Bxd6 {[%clk 0:02:53.3]} 10... Nxd6 {[%clk 0:02:11.9]} 11. Re1 {[%clk
0:02:45.9]} 11... O-O {[%clk 0:02:08.4]} 12. Bxf5 {[%clk 0:02:44]} 12... Nxf5
{[%clk 0:02:06.8]} 13. Nbd2 {[%clk 0:02:42.4]} 13... Rc8 {[%clk 0:02:05.4]} 14.
Ne5 {[%clk 0:02:33.4]} 14... Nxe5 {[%clk 0:02:05.5]} 15. Rxe5 {[%clk 0:02:24.3]}
15... b5 {[%clk 0:02:05.6]} 16. a3 {[%clk 0:02:22.7]} 16... Nd6 {[%clk
0:02:02.5]} 17. Qe2 {[%clk 0:01:56.1]} 17... Nc4 {[%clk 0:02:00]} 18. Nxc4
{[%clk 0:01:42.7]} 18... bxc4 {[%clk 0:02:00.9]} 19. Rd1 {[%clk 0:01:36.5]}
19... Rb8 {[%clk 0:01:59.3]} 20. Rd2 {[%clk 0:01:35.9]} 20... Qf6 {[%clk
0:01:58]} 21. Qd1 {[%clk 0:01:11.9]} 21... Rb7 {[%clk 0:01:45.4]} 22. g3 {[%clk
0:01:08.4]} 22... Rfb8 {[%clk 0:01:41.7]} 23. Ree2 {[%clk 0:01:08.6]} 23... Qf5
{[%clk 0:01:40.4]} 24. Qc1 {[%clk 0:01:04.5]} 24... h5 {[%clk 0:01:36]} 25. h4
{[%clk 0:01:04]} 25... g6 {[%clk 0:01:31.6]} 26. Kg2 {[%clk 0:01:02.3]} 26...
Kg7 {[%clk 0:01:23.7]} 27. Qc2 {[%clk 0:00:59]} 27... Qf6 {[%clk 0:01:18.8]} 28.
Qa4 {[%clk 0:00:52.2]} 28... Qd8 {[%clk 0:01:13.6]} 29. Qc6 {[%clk 0:00:42.3]}
29... Rb6 {[%clk 0:01:06.4]} 30. Qa4 {[%clk 0:00:41.2]} 30... Qc7 {[%clk
0:01:06.8]} 31. Qd1 {[%clk 0:00:40.5]} 31... Qe7 {[%clk 0:01:02.5]} 32. Qa4
{[%clk 0:00:32.8]} 32... a6 {[%clk 0:01:02.8]} 33. Qd1 {[%clk 0:00:30.9]} 33...
Qf6 {[%clk 0:01:02.3]} 34. Qc1 {[%clk 0:00:29.8]} 34... Rb3 {[%clk 0:01:02]} 35.
Qe1 {[%clk 0:00:28.2]} 35... Qf5 {[%clk 0:01:01.7]} 36. Qc1 {[%clk 0:00:26.9]}
36... Qg4 {[%clk 0:00:57.7]} 37. Qb1 {[%clk 0:00:25.9]} 37... R8b6 {[%clk
0:00:54.1]} 38. f3 {[%clk 0:00:26.1]} 38... Qf5 {[%clk 0:00:54.4]} 39. Qxf5
{[%clk 0:00:26.6]} 39... gxf5 {[%clk 0:00:54.9]} 40. Kf2 {[%clk 0:00:23.9]}
40... Kf8 {[%clk 0:00:52.7]} 41. Ke3 {[%clk 0:00:23.7]} 41... Ke7 {[%clk
0:00:52.1]} 42. Kf4 {[%clk 0:00:24.1]} 42... Kf6 {[%clk 0:00:52.6]} 43. g4
{[%clk 0:00:23.9]} 43... fxg4 {[%clk 0:00:50.4]} 44. fxg4 {[%clk 0:00:24.8]}
44... hxg4 {[%clk 0:00:49.3]} 45. Kxg4 {[%clk 0:00:25.7]} 45... Rb8 {[%clk
0:00:49.6]} 46. Rf2+ {[%clk 0:00:26.1]} 46... Ke7 {[%clk 0:00:49.8]} 47. h5
{[%clk 0:00:25.7]} 47... Rg8+ {[%clk 0:00:49.8]} 48. Kf4 {[%clk 0:00:25.7]}
48... Rbb8 {[%clk 0:00:48.3]} 49. Rh2 {[%clk 0:00:25.7]} 49... Kf6 {[%clk
0:00:47.1]} 50. Rdg2 {[%clk 0:00:24.6]} 50... Rh8 {[%clk 0:00:36.5]} 51. Rg3
{[%clk 0:00:24.7]} 51... Rbg8 {[%clk 0:00:36]} 52. Rxg8 {[%clk 0:00:22.8]} 52...
Rxg8 {[%clk 0:00:36.9]} 53. h6 {[%clk 0:00:22.6]} 53... Rh8 {[%clk 0:00:35.4]}
54. h7 {[%clk 0:00:22.7]} 54... Kg7 {[%clk 0:00:28.2]} 55. Ke5 {[%clk
0:00:19.6]} 55... Rxh7 {[%clk 0:00:28.5]} 56. Rg2+ {[%clk 0:00:16.3]} 56... Kf8
{[%clk 0:00:28.6]} 57. Kd6 {[%clk 0:00:16.7]} 57... Rg7 {[%clk 0:00:21.7]} 58.
Rf2 {[%clk 0:00:16]} 58... Rg1 {[%clk 0:00:20.7]} 59. Kc6 {[%clk 0:00:15.4]}
59... Ke7 {[%clk 0:00:15.8]} 60. Kb6 {[%clk 0:00:15.5]} 60... f6 {[%clk
0:00:16]} 61. Kxa6 {[%clk 0:00:15.4]} 61... e5 {[%clk 0:00:16.7]} 62. Kb5 {[%clk
0:00:14.6]} 62... e4 {[%clk 0:00:15.9]} 63. a4 {[%clk 0:00:12.3]} 63... Ke6
{[%clk 0:00:15.8]} 64. a5 {[%clk 0:00:12.2]} 64... f5 {[%clk 0:00:15.1]} 65. a6
{[%clk 0:00:11.4]} 65... e3 {[%clk 0:00:15.1]} 66. Re2 {[%clk 0:00:09.1]} 66...
f4 {[%clk 0:00:15.4]} 67. a7 {[%clk 0:00:09.2]} 67... Ra1 {[%clk 0:00:16.1]} 68.
Kb6 {[%clk 0:00:07.5]} 68... Kf5 {[%clk 0:00:15.6]} 69. Kc5 {[%clk 0:00:04.3]}
69... Ke4 {[%clk 0:00:16]} 70. Rh2 {[%clk 0:00:01.2]} 70... Rxa7 {[%clk
0:00:16.1]} 71. Rh4 {[%clk 0:00:01.2]} 71... e2 {[%clk 0:00:16]} 72. Rh2 {[%clk
0:00:01.3]} 72... e1=Q {[%clk 0:00:16]} 0-1

[Event "*** Titled Tuesday Blitz"]
[Site "Chess.com"]
[Date "2020.12.29"]
[Round "3"]
[White "Flopezin"]
[Black "esteban062000"]
[Result "1/2-1/2"]
[WhiteElo "2348"]
[BlackElo "2199"]
[TimeControl "180+1"]
[EndTime "10:29:57 PST"]
[Termination "Game drawn by stalemate"]

1. e4 {[%clk 0:03:00.9]} 1... c5 {[%clk 0:02:59.6]} 2. Nf3 {[%clk 0:02:59]} 2...
g6 {[%clk 0:02:59.1]} 3. d4 {[%clk 0:02:57.1]} 3... cxd4 {[%clk 0:02:59.1]} 4.
Nxd4 {[%clk 0:02:58]} 4... Nc6 {[%clk 0:02:59.1]} 5. c4 {[%clk 0:02:58.4]} 5...
Nf6 {[%clk 0:02:52.2]} 6. Nc3 {[%clk 0:02:57.9]} 6... d6 {[%clk 0:02:52.3]} 7.
Be2 {[%clk 0:02:54.6]} 7... Nxd4 {[%clk 0:02:49.9]} 8. Qxd4 {[%clk 0:02:55.5]}
8... Bg7 {[%clk 0:02:49.7]} 9. Be3 {[%clk 0:02:51]} 9... O-O {[%clk 0:02:48.4]}
10. Qd2 {[%clk 0:02:49.6]} 10... Be6 {[%clk 0:02:47.3]} 11. O-O {[%clk
0:02:45.4]} 11... Qa5 {[%clk 0:02:46.1]} 12. Rac1 {[%clk 0:02:42]} 12... Rfc8
{[%clk 0:02:44.6]} 13. b3 {[%clk 0:02:40.6]} 13... a6 {[%clk 0:02:44.2]} 14. a4
{[%clk 0:02:37]} 14... b5 {[%clk 0:02:27]} 15. axb5 {[%clk 0:02:29.6]} 15...
axb5 {[%clk 0:02:26.2]} 16. Nxb5 {[%clk 0:02:30.5]} 16... Qxd2 {[%clk
0:02:24.5]} 17. Bxd2 {[%clk 0:02:31.4]} 17... Nxe4 {[%clk 0:02:24.7]} 18. Be3
{[%clk 0:02:24.3]} 18... Ra2 {[%clk 0:02:21.2]} 19. Bf3 {[%clk 0:02:23.9]} 19...
Nd2 {[%clk 0:02:16.2]} 20. Bxd2 {[%clk 0:02:22.7]} 20... Rxd2 {[%clk 0:02:17.1]}
21. Rfd1 {[%clk 0:02:23.3]} 21... Rb2 {[%clk 0:02:10.7]} 22. Rd3 {[%clk
0:02:12.1]} 22... Bf5 {[%clk 0:02:02]} 23. Re3 {[%clk 0:02:03.1]} 23... Bh6
{[%clk 0:01:58.4]} 24. Rce1 {[%clk 0:02:01.2]} 24... Bxe3 {[%clk 0:01:56.3]} 25.
fxe3 {[%clk 0:02:02.1]} 25... Ra8 {[%clk 0:01:34.9]} 26. Bxa8 {[%clk 0:02:01.1]}
26... Rxb3 {[%clk 0:01:34.5]} 27. Nd4 {[%clk 0:01:58.8]} 27... Rc3 {[%clk
0:01:33.2]} 28. Bd5 {[%clk 0:01:36.7]} 28... Bd3 {[%clk 0:01:27.5]} 29. Nb5
{[%clk 0:01:32.6]} 29... Rc2 {[%clk 0:01:25]} 30. Rd1 {[%clk 0:01:20.9]} 30...
Be2 {[%clk 0:01:11.9]} 31. Ra1 {[%clk 0:01:14.2]} 31... e6 {[%clk 0:01:11.4]}
32. Nd4 {[%clk 0:01:12.7]} 32... Rd2 {[%clk 0:01:04.7]} 33. Nxe2 {[%clk
0:01:09]} 33... Rxe2 {[%clk 0:01:05.6]} 34. Bf3 {[%clk 0:01:03.8]} 34... Rxe3
{[%clk 0:01:05.6]} 35. Ra6 {[%clk 0:00:59.8]} 35... Rc3 {[%clk 0:01:00.3]} 36.
Be2 {[%clk 0:00:56.7]} 36... d5 {[%clk 0:00:51.9]} 37. cxd5 {[%clk 0:00:57.6]}
37... exd5 {[%clk 0:00:52.1]} 38. Rd6 {[%clk 0:00:58]} 38... Rc5 {[%clk
0:00:47.4]} 39. Bf3 {[%clk 0:00:58.3]} 39... Kf8 {[%clk 0:00:47.6]} 40. Rxd5
{[%clk 0:00:58.1]} 40... Rc1+ {[%clk 0:00:47.8]} 41. Kf2 {[%clk 0:00:57.7]}
41... Ke7 {[%clk 0:00:47.7]} 42. Ra5 {[%clk 0:00:57.1]} 42... Rc2+ {[%clk
0:00:47.9]} 43. Kg3 {[%clk 0:00:57.1]} 43... Rc4 {[%clk 0:00:48]} 44. Ra7+
{[%clk 0:00:55.8]} 44... Ke8 {[%clk 0:00:43.1]} 45. Rxf7 {[%clk 0:00:49.1]}
45... h5 {[%clk 0:00:40.2]} 46. Rg7 {[%clk 0:00:46.4]} 46... h4+ {[%clk
0:00:37.8]} 47. Kf2 {[%clk 0:00:46.5]} 47... Rc2+ {[%clk 0:00:37.4]} 48. Ke3
{[%clk 0:00:45.3]} 48... Rc3+ {[%clk 0:00:37.9]} 49. Kf4 {[%clk 0:00:44.7]}
49... Rc4+ {[%clk 0:00:35.8]} 50. Kg5 {[%clk 0:00:41.7]} 50... h3 {[%clk
0:00:31]} 51. gxh3 {[%clk 0:00:41.4]} 51... Kf8 {[%clk 0:00:30.5]} 52. Rxg6
{[%clk 0:00:41.2]} 52... Rc5+ {[%clk 0:00:30.2]} 53. Kg4 {[%clk 0:00:40.6]}
53... Kf7 {[%clk 0:00:28.3]} 54. Rg5 {[%clk 0:00:40.8]} 54... Rc4+ {[%clk
0:00:28.3]} 55. Kg3 {[%clk 0:00:40.4]} 55... Kf6 {[%clk 0:00:28.2]} 56. Rg4
{[%clk 0:00:39.8]} 56... Rc3 {[%clk 0:00:28.5]} 57. h4 {[%clk 0:00:40]} 57...
Rc1 {[%clk 0:00:28.7]} 58. Ra4 {[%clk 0:00:39.7]} 58... Rg1+ {[%clk 0:00:28.4]}
59. Kf4 {[%clk 0:00:39.9]} 59... Rc1 {[%clk 0:00:26.2]} 60. Ra6+ {[%clk
0:00:39.6]} 60... Kg7 {[%clk 0:00:26.5]} 61. h5 {[%clk 0:00:38.9]} 61... Rc2
{[%clk 0:00:25.4]} 62. h4 {[%clk 0:00:38]} 62... Rc4+ {[%clk 0:00:25]} 63. Kg3
{[%clk 0:00:37.1]} 63... Rc5 {[%clk 0:00:23.2]} 64. Ra4 {[%clk 0:00:28.9]} 64...
Kh6 {[%clk 0:00:21.1]} 65. Rf4 {[%clk 0:00:29.3]} 65... Rc3 {[%clk 0:00:20.1]}
66. Kg4 {[%clk 0:00:29.1]} 66... Rc1 {[%clk 0:00:20.4]} 67. Rf6+ {[%clk
0:00:28.6]} 67... Kg7 {[%clk 0:00:20.2]} 68. Rg6+ {[%clk 0:00:29]} 68... Kf7
{[%clk 0:00:19.8]} 69. Be4 {[%clk 0:00:29.8]} 69... Rg1+ {[%clk 0:00:19.9]} 70.
Kf5 {[%clk 0:00:30.4]} 70... Rf1+ {[%clk 0:00:20.3]} 71. Ke5 {[%clk 0:00:29.8]}
71... Re1 {[%clk 0:00:20.6]} 72. h6 {[%clk 0:00:29]} 72... Rxe4+ {[%clk
0:00:20.7]} 73. Kf5 {[%clk 0:00:23.8]} 73... Rf4+ {[%clk 0:00:20.5]} 74. Kg5
{[%clk 0:00:21.7]} 74... Rg4+ {[%clk 0:00:20.3]} 75. Kxg4 {[%clk 0:00:17]} 75...
Kxg6 {[%clk 0:00:21.2]} 76. h5+ {[%clk 0:00:11]} 76... Kxh6 {[%clk 0:00:21.5]}
77. Kh4 {[%clk 0:00:11.7]} 77... Kh7 {[%clk 0:00:22]} 78. Kg5 {[%clk 0:00:12.6]}
78... Kh8 {[%clk 0:00:22.2]} 79. h6 {[%clk 0:00:13.5]} 79... Kh7 {[%clk
0:00:23.1]} 80. Kh5 {[%clk 0:00:13.9]} 80... Kh8 {[%clk 0:00:24]} 81. Kg6 {[%clk
0:00:14.8]} 81... Kg8 {[%clk 0:00:23.9]} 82. h7+ {[%clk 0:00:15.7]} 82... Kh8
{[%clk 0:00:24.8]} 83. Kh6 {[%clk 0:00:16.6]} 1/2-1/2

[Event "*** Titled Tuesday Blitz"]
[Site "Chess.com"]
[Date "2020.12.29"]
[Round "3"]
[White "Slovak_fighter2000"]
[Black "WinOrTilt"]
[Result "1-0"]
[WhiteElo "2480"]
[BlackElo "2104"]
[TimeControl "180+1"]
[EndTime "10:29:58 PST"]
[Termination "Slovak_fighter2000 won by resignation"]

1. e4 {[%clk 0:03:00.9]} 1... c6 {[%clk 0:02:58.6]} 2. Nf3 {[%clk 0:03:00.3]}
2... d5 {[%clk 0:02:59.5]} 3. Nc3 {[%clk 0:02:59.4]} 3... dxe4 {[%clk
0:02:57.7]} 4. Nxe4 {[%clk 0:03:00.3]} 4... Nf6 {[%clk 0:02:58.6]} 5. Nxf6+
{[%clk 0:02:58.7]} 5... exf6 {[%clk 0:02:59.5]} 6. d4 {[%clk 0:02:55.8]} 6...
Be7 {[%clk 0:03:00.4]} 7. Bd3 {[%clk 0:02:54.4]} 7... O-O {[%clk 0:03:01.3]} 8.
O-O {[%clk 0:02:47.8]} 8... Be6 {[%clk 0:02:50.6]} 9. c3 {[%clk 0:02:38.5]} 9...
Nd7 {[%clk 0:02:50.6]} 10. Bf4 {[%clk 0:02:37.1]} 10... Nb6 {[%clk 0:02:50.3]}
11. Bg3 {[%clk 0:02:33.9]} 11... Bd6 {[%clk 0:02:45]} 12. Bxd6 {[%clk
0:02:29.2]} 12... Qxd6 {[%clk 0:02:45.9]} 13. Re1 {[%clk 0:02:29.2]} 13... Rfe8
{[%clk 0:02:42.2]} 14. Qc2 {[%clk 0:02:22.2]} 14... g6 {[%clk 0:02:41]} 15. h3
{[%clk 0:02:14.7]} 15... Nd5 {[%clk 0:02:22.3]} 16. Bf1 {[%clk 0:02:03.7]} 16...
Nf4 {[%clk 0:02:08.3]} 17. Re3 {[%clk 0:01:52.8]} 17... Bf5 {[%clk 0:02:02.6]}
18. Qd2 {[%clk 0:01:49.8]} 18... Rxe3 {[%clk 0:01:32.5]} 19. Qxe3 {[%clk
0:01:50.7]} 19... Kg7 {[%clk 0:01:26.2]} 20. Nd2 {[%clk 0:01:44.4]} 20... Nd5
{[%clk 0:01:21.6]} 21. Nc4 {[%clk 0:01:36.6]} 21... Qd7 {[%clk 0:01:16.6]} 22.
Qg3 {[%clk 0:01:34.4]} 22... Re8 {[%clk 0:01:10.6]} 23. Nd6 {[%clk 0:01:09.1]}
23... Re7 {[%clk 0:00:59.8]} 24. Nxf5+ {[%clk 0:01:07.3]} 24... Qxf5 {[%clk
0:00:59.7]} 25. Bd3 {[%clk 0:01:06.8]} 25... Qf4 {[%clk 0:00:55.3]} 26. Qxf4
{[%clk 0:00:54.6]} 26... Nxf4 {[%clk 0:00:56.2]} 27. Bf1 {[%clk 0:00:55]} 27...
b5 {[%clk 0:00:44.1]} 28. a4 {[%clk 0:00:52.6]} 28... b4 {[%clk 0:00:33.4]} 29.
cxb4 {[%clk 0:00:43.5]} 29... Ne2+ {[%clk 0:00:29.6]} 30. Bxe2 {[%clk
0:00:37.2]} 30... Rxe2 {[%clk 0:00:30.5]} 31. Rc1 {[%clk 0:00:25]} 31... Rxb2
{[%clk 0:00:25.5]} 32. Rxc6 {[%clk 0:00:22.7]} 32... Rxb4 {[%clk 0:00:23]} 33.
Ra6 {[%clk 0:00:22.5]} 33... Rxd4 {[%clk 0:00:20.4]} 34. Rxa7 {[%clk 0:00:22.6]}
34... Rd1+ {[%clk 0:00:17.9]} 35. Kh2 {[%clk 0:00:22.5]} 35... Ra1 {[%clk
0:00:18.8]} 36. Kg3 {[%clk 0:00:22.6]} 36... h5 {[%clk 0:00:18.8]} 37. Kf3
{[%clk 0:00:22.8]} 37... f5 {[%clk 0:00:14.9]} 38. Ra6 {[%clk 0:00:21.4]} 38...
g5 {[%clk 0:00:13.3]} 39. g3 {[%clk 0:00:20.8]} 39... Ra3+ {[%clk 0:00:12.9]}
40. Kg2 {[%clk 0:00:20.7]} 40... h4 {[%clk 0:00:10]} 41. gxh4 {[%clk 0:00:19.3]}
41... gxh4 {[%clk 0:00:10.9]} 42. a5 {[%clk 0:00:18]} 42... f6 {[%clk 0:00:08]}
43. Ra7+ {[%clk 0:00:16]} 43... Kg6 {[%clk 0:00:07.6]} 44. Ra8 {[%clk
0:00:16.9]} 44... Kg5 {[%clk 0:00:07.8]} 45. a6 {[%clk 0:00:14.7]} 45... Kf4
{[%clk 0:00:07.7]} 46. a7 {[%clk 0:00:10.6]} 46... Ra6 {[%clk 0:00:06.8]} 47.
Kf1 {[%clk 0:00:05.7]} 47... Ra2 {[%clk 0:00:07.1]} 48. Kg2 {[%clk 0:00:05.3]}
48... Ra6 {[%clk 0:00:07]} 49. Rh8 {[%clk 0:00:05.4]} 49... Rxa7 {[%clk
0:00:06.6]} 50. Rxh4+ {[%clk 0:00:05.9]} 50... Kg5 {[%clk 0:00:06.6]} 51. Rb4
{[%clk 0:00:06.8]} 51... Re7 {[%clk 0:00:06.4]} 52. Kg3 {[%clk 0:00:05.3]} 52...
Rd7 {[%clk 0:00:05.7]} 53. h4+ {[%clk 0:00:04.2]} 53... Kh5 {[%clk 0:00:04.3]}
54. Kf4 {[%clk 0:00:03.7]} 54... Kg6 {[%clk 0:00:02.1]} 55. h5+ {[%clk
0:00:03.1]} 55... Kxh5 {[%clk 0:00:02.5]} 56. Kxf5 {[%clk 0:00:03.4]} 56... Rd2
{[%clk 0:00:03.1]} 57. f4 {[%clk 0:00:03]} 57... Rd6 {[%clk 0:00:02.9]} 58. Rb1
{[%clk 0:00:02.2]} 58... Kh6 {[%clk 0:00:03.3]} 59. Rg1 {[%clk 0:00:02.4]} 59...
Rc6 {[%clk 0:00:02.9]} 60. Rg6+ {[%clk 0:00:02.2]} 60... Kh7 {[%clk 0:00:03.2]}
61. Rxf6 {[%clk 0:00:03.1]} 61... Rxf6+ {[%clk 0:00:02.6]} 62. Kxf6 {[%clk
0:00:03.2]} 62... Kg8 {[%clk 0:00:02.2]} 63. Ke7 {[%clk 0:00:03.4]} 63... Kg7
{[%clk 0:00:02.2]} 64. f5 {[%clk 0:00:04.3]} 1-0